bitfinex-derivatives/quotes_BNBF0:USTF0_20250211
["timestamp","ask_amount","ask_price","bid_price","bid_amount"]
[1739239144723,2.05203235,618.98,617.07,0.32411233]
[1739239144925,1.72892014,618.97,617.07,0.32411233]
[1739239145126,1.72892014,618.96,617.07,0.32411233]
[1739239145327,1.72892014,618.95,617.07,0.32411233]
[1739239145523,2.05205323,618.94,617.07,0.32411233]
[1739239145722,2.05205845,618.93,617.07,0.32411233]
[1739239145926,1.68904708,619.14,617.07,0.32411233]
[1739239145927,2.05206368,618.92,617.07,0.32411233]
[1739239146118,2.0520689,618.91,617.07,0.32411233]
[1739239146325,1.72892014,618.9,617.07,0.32411233]
[1739239146521,0.29711428,618.89,617.07,0.32411233]
[1739239146725,0.29711428,618.9,617.07,0.32411233]
[1739239146926,0.29713304,618.89,617.07,0.32411233]
[1739239147223,0.29713304,618.88,617.07,0.32411233]
[1739239147427,0.32316964,618.87,617.07,0.32411233]
[1739239147629,0.29713304,618.86,617.07,0.32411233]
[1739239147929,0.32318009,618.85,617.07,0.32411233]
[1739239148123,0.29713304,618.84,617.07,0.32411233]
[1739239148325,0.32319053,618.83,617.07,0.32411233]
[1739239148524,0.29713304,618.82,617.07,0.32411233]
[1739239148728,0.62034494,618.81,617.07,0.32411233]
[1739239148928,1.35093442,618.8,617.07,0.32411233]
[1739239149230,0.29714396,618.79,617.07,0.32411233]
[1739239150533,0.29713518,618.78,617.07,0.32411233]
[1739239150826,0.29713518,618.77,617.07,0.32411233]
[1739239151027,0.29713518,618.79,617.07,0.32411233]
[1739239151331,0.29713518,618.78,617.07,0.32411233]
[1739239151530,0.29713518,618.77,617.07,0.32411233]
[1739239151730,0.29713518,618.79,617.07,0.32411233]
[1739239151929,0.29713518,618.78,617.07,0.32411233]
[1739239152130,0.29713518,618.79,617.07,0.32411233]
[1739239152324,0.29713518,618.78,617.07,0.32411233]
[1739239152528,0.29713518,618.79,617.07,0.32411233]
[1739239152724,1.05379046,618.8,617.07,0.32411233]
[1739239152725,0.29713518,618.78,617.07,0.32411233]
[1739239152924,0.29713518,618.77,617.07,0.32411233]
[1739239153131,0.29713518,618.79,617.07,0.32411233]
[1739239153432,0.29713518,618.78,617.07,0.32411233]
[1739239153633,0.29713518,618.77,617.07,0.32411233]
[1739239153931,1.05379046,618.8,617.07,0.32411233]
[1739239153932,0.29713518,618.79,617.07,0.32411233]
[1739239155433,1.05379046,618.8,617.07,0.32411233]
[1739239158534,0.32320098,618.81,617.07,0.32411233]
[1739239161638,2.50619564,618.8,617.07,0.32411233]
[1739239161837,1.76703165,618.79,617.07,0.32411233]
[1739239162035,2.50619564,618.78,617.07,0.32411233]
[1739239162234,1.06237541,618.78,617.07,0.32411233]
[1739239162432,1.44416855,618.77,617.07,0.32411233]
[1739239162740,0.29718262,618.76,617.07,0.32411233]
[1739239162940,1.44399175,618.75,617.07,0.32411233]
[1739239163338,0.29718262,618.74,617.07,0.32411233]
[1739239163538,1.06237541,618.74,617.07,0.32411233]
[1739239163737,0.29718262,618.73,617.07,0.32411233]
[1739239164642,0.29718323,618.72,617.07,0.32411233]
[1739239164936,0.29718323,618.71,617.07,0.32411233]
[1739239165142,1.06237541,618.78,617.07,0.32411233]
[1739239165340,1.44487033,618.77,617.07,0.32411233]
[1739239165536,1.06237541,618.76,617.07,0.32411233]
[1739239165741,1.4454796,618.75,617.07,0.32411233]
[1739239166342,1.06237541,618.74,617.07,0.32411233]
[1739239166549,1.4454796,618.73,617.07,0.32411233]
[1739239167537,1.06237541,618.72,617.07,0.32411233]
[1739239167739,1.4454796,618.71,617.07,0.32411233]
[1739239168237,1.06237541,618.7,617.07,0.32411233]
[1739239168437,1.4454796,618.69,617.07,0.32411233]
[1739239168945,1.06237541,618.68,617.07,0.32411233]
[1739239169246,1.4454796,618.67,617.07,0.32411233]
[1739239169846,1.45346433,618.66,617.07,0.32411233]
[1739239170046,1.45346433,618.65,617.07,0.32411233]
[1739239170346,2.51583974,618.64,617.07,0.32411233]
[1739239170545,1.45346433,618.63,617.07,0.32411233]
[1739239170746,1.06237541,618.62,617.07,0.32411233]
[1739239170944,1.45346433,618.61,617.07,0.32411233]
[1739239171342,1.06237541,618.6,617.07,0.32411233]
[1739239171544,1.4572946,618.59,617.07,0.32411233]
[1739239172041,2.51960333,618.58,617.07,0.32411233]
[1739239172245,1.45722792,618.57,617.07,0.32411233]
[1739239172642,1.06237541,618.56,617.07,0.32411233]
[1739239173244,1.06237541,618.78,617.07,0.32411233]
[1739239173441,1.45972146,618.77,617.07,0.32411233]
[1739239173645,1.06237541,618.76,617.07,0.32411233]
[1739239173846,1.78295378,618.75,617.07,0.32411233]
[1739239174043,1.45972146,618.74,617.07,0.32411233]
[1739239174747,1.06237541,618.73,617.07,0.32411233]
[1739239174943,1.45972146,618.72,617.07,0.32411233]
[1739239175143,0.29718462,618.71,617.07,0.32411233]
[1739239175345,1.45972146,618.7,617.07,0.32411233]
[1739239175545,1.06237541,618.69,617.07,0.32411233]
[1739239175846,1.45972146,618.68,617.07,0.32411233]
[1739239176246,1.46104585,618.67,617.07,0.32411233]
[1739239176447,2.52342126,618.66,617.07,0.32411233]
[1739239176647,1.06237541,618.66,617.07,0.32411233]
[1739239176844,1.46105731,618.65,617.07,0.32411233]
[1739239177349,2.52343272,618.64,617.07,0.32411233]
[1739239177549,1.46105731,618.63,617.07,0.32411233]
[1739239177746,1.46105731,618.63,617.26,1.19824383]
[1739239178150,1.06237541,618.62,617.26,1.19824383]
[1739239178343,1.46105731,618.61,617.26,1.19824383]
[1739239178749,1.06237541,618.6,617.26,1.19824383]
[1739239178949,1.46105731,618.59,617.28,0.32400207]
[1739239180053,1.06237541,618.58,617.28,0.32400207]
[1739239180255,1.46105731,618.57,617.28,0.32400207]
[1739239180755,1.06237541,618.56,617.28,0.32400207]
[1739239180954,1.46152495,618.55,617.28,0.32400207]
[1739239181355,1.06237541,618.54,617.28,0.32400207]
[1739239181556,1.46152495,618.53,617.28,0.32400207]
[1739239181959,1.06237541,618.52,617.28,0.32400207]
[1739239182159,1.46152495,618.51,617.28,0.32400207]
[1739239182557,1.06237541,618.5,617.28,0.32400207]
[1739239182755,1.46152495,618.49,617.28,0.32400207]
[1739239183458,1.06237541,618.5,617.28,0.32400207]
[1739239183661,1.06237541,618.48,617.28,0.32400207]
[1739239184258,1.46221531,618.47,617.28,0.32400207]
[1739239184459,1.46221531,618.46,617.28,0.32400207]
[1739239184662,1.06237541,618.45,617.28,0.32400207]
[1739239185463,1.06237541,618.74,617.28,0.32400207]
[1739239185761,1.75983042,618.73,617.28,0.32400207]
[1739239185959,1.46262923,618.72,617.28,0.32400207]
[1739239186862,1.06237541,618.71,617.28,0.32400207]
[1739239187062,1.46262923,618.7,617.28,0.32400207]
[1739239187462,0.32323232,618.75,617.28,0.32400207]
[1739239187463,2.53920489,618.69,617.28,0.32400207]
[1739239187763,2.53920489,618.68,617.28,0.32400207]
[1739239187961,1.46262923,618.67,617.28,0.32400207]
[1739239188462,1.07657566,618.66,617.28,0.32400207]
[1739239188664,1.46262923,618.65,617.28,0.32400207]
[1739239189257,1.07657566,618.66,617.28,0.32400207]
[1739239189459,1.46362295,618.65,617.28,0.32400207]
[1739239189665,1.07657566,618.64,617.28,0.32400207]
[1739239189866,1.78691797,618.63,617.28,0.32400207]
[1739239190060,1.78692319,618.62,617.28,0.32400207]
[1739239190265,1.78692842,618.61,617.28,0.32400207]
[1739239190468,1.46362295,618.6,617.28,0.32400207]
[1739239190660,1.46362295,618.59,617.28,0.32400207]
[1739239190862,1.46362295,618.58,617.28,0.32400207]
[1739239191063,1.46362295,618.57,617.28,0.32400207]
[1739239191262,1.46362295,618.56,617.28,0.32400207]
[1739239191465,1.46362295,618.55,617.28,0.32400207]
[1739239191667,1.46362295,618.54,617.28,0.32400207]
[1739239191967,1.46362295,618.53,617.28,0.32400207]
[1739239192466,1.07657566,618.52,617.28,0.32400207]
[1739239192666,1.46362295,618.51,617.28,0.32400207]
[1739239193563,2.5401803,618.5,617.28,0.32400207]
[1739239193762,1.46360464,618.49,617.28,0.32400207]
[1739239194162,1.07709578,618.48,617.28,0.32400207]
[1739239194367,1.46360464,618.47,617.28,0.32400207]
[1739239194867,1.07709578,618.46,617.28,0.32400207]
[1739239195067,1.46360464,618.45,617.28,0.32400207]
[1739239195466,1.07709578,618.44,617.28,0.32400207]
[1739239195666,1.46360464,618.43,617.28,0.32400207]
[1739239195864,1.07709578,618.42,617.28,0.32400207]
[1739239196065,1.46360464,618.41,617.28,0.32400207]
[1739239196667,1.07709578,618.4,617.28,0.32400207]
[1739239196865,1.46360464,618.39,617.28,0.32400207]
[1739239197269,1.07709578,618.38,617.28,0.32400207]
[1739239197465,1.46360464,618.37,617.28,0.32400207]
[1739239198071,1.07709578,618.36,617.28,0.32400207]
[1739239198270,1.46360464,618.35,617.28,0.32400207]
[1739239198674,1.07709578,618.34,617.28,0.32400207]
[1739239198869,1.46360464,618.33,617.28,0.32400207]
[1739239199473,1.07709578,618.32,617.28,0.32400207]
[1739239199675,1.46360464,618.31,617.28,0.32400207]
[1739239200472,1.07709578,618.3,617.28,0.32400207]
[1739239200678,1.46360464,618.29,617.28,0.32400207]
[1739239201078,1.07709578,618.28,617.28,0.32400207]
[1739239201674,1.07709578,618.6,617.28,0.32400207]
[1739239201875,1.76413844,618.59,617.28,0.32400207]
[1739239202072,1.46687967,618.58,617.28,0.32400207]
[1739239202376,1.46687967,618.57,617.28,0.32400207]
[1739239202678,1.46687967,618.56,617.28,0.32400207]
[1739239202880,2.54397545,618.55,617.28,0.32400207]
[1739239203179,1.46687967,618.54,617.28,0.32400207]
[1739239203879,1.07709578,618.53,617.28,0.32400207]
[1739239204178,2.54397545,618.52,617.28,0.32400207]
[1739239204474,1.46687967,618.51,617.28,0.32400207]
[1739239204680,2.54397545,618.51,617.28,0.32400207]
[1739239204979,1.46687967,618.5,617.28,0.32400207]
[1739239205377,1.07709578,618.49,617.28,0.32400207]
[1739239205579,1.46687967,618.48,617.28,0.32400207]
[1739239205880,1.07709578,618.49,617.28,0.32400207]
[1739239206478,1.07709578,618.6,617.28,0.32400207]
[1739239206676,1.46763255,618.59,617.28,0.32400207]
[1739239207079,1.07709578,618.58,617.28,0.32400207]
[1739239207281,1.46763255,618.57,617.28,0.32400207]
[1739239207481,1.07709578,618.56,617.28,0.32400207]
[1739239207682,1.46763255,618.55,617.28,0.32400207]
[1739239208182,1.07709578,618.54,617.51,1.19824383]
[1739239208384,1.46763255,618.53,617.51,1.19824383]
[1739239208676,1.07709578,618.52,617.52,0.32387614]
[1739239209288,1.07709578,618.6,617.52,0.32387614]
[1739239210088,1.07709578,619.07,617.52,0.32387614]
[1739239210289,1.46780479,619.06,617.52,0.32387614]
[1739239210486,1.46780479,619.05,617.52,0.32387614]
[1739239210790,1.46780479,619.04,617.52,0.32387614]
[1739239210992,1.46780479,619.03,617.52,0.32387614]
[1739239211191,1.46780479,619.02,617.52,0.32387614]
[1739239211393,1.46780479,619.01,617.52,0.32387614]
[1739239211591,1.46780479,619.0,617.52,0.32387614]
[1739239211794,1.07709578,618.99,617.52,0.32387614]
[1739239212293,1.07709578,619.34,617.52,0.32387614]
[1739239212592,2.08594,619.33,617.52,0.32387614]
[1739239212795,1.76301039,619.32,617.52,0.32387614]
[1739239212994,1.76301039,619.31,617.52,0.32387614]
[1739239213197,2.84010617,619.3,617.52,0.32387614]
[1739239213395,1.76301039,619.29,617.52,0.32387614]
[1739239213596,1.76301039,619.28,617.52,0.32387614]
[1739239213798,1.76301039,619.27,617.52,0.32387614]
[1739239213996,1.76301039,619.26,617.52,0.32387614]
[1739239214295,0.32292961,619.33,617.52,0.32387614]
[1739239214296,2.84010617,619.25,617.52,0.32387614]
[1739239214489,1.46607661,619.24,617.52,0.32387614]
[1739239214696,1.07709578,619.23,617.52,0.32387614]
[1739239214891,1.46607661,619.22,617.52,0.32387614]
[1739239215295,1.07709578,619.21,617.52,0.32387614]
[1739239215496,1.46276882,619.2,617.52,0.32387614]
[1739239215694,1.07709578,619.19,617.52,0.32387614]
[1739239216096,1.46276734,619.18,617.52,0.32387614]
[1739239216596,1.46276734,619.17,617.52,0.32387614]
[1739239216798,1.46276734,619.16,617.52,0.32387614]
[1739239216993,1.46276734,619.15,617.52,0.32387614]
[1739239217196,1.46276734,619.14,617.52,0.32387614]
[1739239217497,1.07709578,619.13,617.52,0.32387614]
[1739239217697,1.46276734,619.12,617.52,0.32387614]
[1739239218490,1.07709578,619.11,617.52,0.32387614]
[1739239218695,1.46276734,619.1,617.52,0.32387614]
[1739239219499,1.07709578,619.09,617.52,0.32387614]
[1739239219798,1.46276734,619.08,617.52,0.32387614]
[1739239220099,1.45882498,619.07,617.52,0.32387614]
[1739239220299,1.45882498,619.06,617.52,0.32387614]
[1739239220798,1.45864279,619.05,617.52,0.32387614]
[1739239221000,1.07709578,619.05,617.52,0.32387614]
[1739239221398,1.07709578,619.32,617.52,0.32387614]
[1739239221599,2.83235018,619.31,617.52,0.32387614]
[1739239221799,1.7552544,619.3,617.52,0.32387614]
[1739239221995,2.83235018,619.29,617.52,0.32387614]
[1739239222201,1.7552544,619.28,617.52,0.32387614]
[1739239222401,1.7552544,619.27,617.52,0.32387614]
[1739239222699,2.83235018,619.26,617.52,0.32387614]
[1739239222900,1.7552544,619.25,617.52,0.32387614]
[1739239223102,1.45832554,619.24,617.52,0.32387614]
[1739239223505,1.07709578,619.23,617.52,0.32387614]
[1739239223703,1.45832554,619.22,617.52,0.32387614]
[1739239223902,1.07709578,619.21,617.52,0.32387614]
[1739239224102,1.45832554,619.2,617.52,0.32387614]
[1739239224603,1.07709578,619.19,617.52,0.32387614]
[1739239224798,1.45832554,619.18,617.52,0.32387614]
[1739239225203,1.07709578,619.17,617.52,0.32387614]
[1739239225504,1.45832554,619.16,617.52,0.32387614]
[1739239225701,1.07709578,619.15,617.52,0.32387614]
[1739239225906,1.45832554,619.14,617.52,0.32387614]
[1739239226305,0.32292961,619.33,617.52,0.32387614]
[1739239226306,2.53332116,619.13,617.52,0.32387614]
[1739239226505,1.45622538,619.12,617.52,0.32387614]
[1739239227002,1.07709578,619.11,617.52,0.32387614]
[1739239227202,1.45622538,619.1,617.52,0.32387614]
[1739239227401,1.07709578,619.09,617.52,0.32387614]
[1739239227604,1.45622538,619.08,617.52,0.32387614]
[1739239228503,1.07709578,619.07,617.52,0.32387614]
[1739239228703,1.45553229,619.06,617.52,0.32387614]
[1739239228898,1.07709578,619.05,617.52,0.32387614]
[1739239229097,1.45553229,619.04,617.52,0.32387614]
[1739239229903,1.07709578,619.03,617.52,0.32387614]
[1739239230301,1.07709578,619.32,617.52,0.32387614]
[1739239230503,1.7522005,619.31,617.52,0.32387614]
[1739239230709,2.07514576,619.3,617.52,0.32387614]
[1739239230910,2.07515097,619.29,617.52,0.32387614]
[1739239231110,2.07515619,619.28,617.52,0.32387614]
[1739239231409,1.7522005,619.27,617.52,0.32387614]
[1739239231605,1.7522005,619.26,617.52,0.32387614]
[1739239231813,2.82929628,619.25,617.52,0.32387614]
[1739239232011,1.7522005,619.24,617.52,0.32387614]
[1739239232205,1.7522005,619.23,617.52,0.32387614]
[1739239232506,1.7522005,619.22,617.52,0.32387614]
[1739239232710,1.07709578,619.23,617.52,0.32387614]
[1739239232711,1.7522005,619.21,617.52,0.32387614]
[1739239232911,1.7522005,619.2,617.52,0.32387614]
[1739239233108,1.7522005,619.19,617.52,0.32387614]
[1739239233411,1.45519835,619.18,617.52,0.32387614]
[1739239233610,2.53229413,619.17,617.52,0.32387614]
[1739239233813,1.45519835,619.16,617.52,0.32387614]
[1739239234007,1.07709578,619.15,617.52,0.32387614]
[1739239234311,1.75217032,619.14,617.52,0.32387614]
[1739239234511,1.75171744,619.13,617.52,0.32387614]
[1739239234713,1.75171744,619.12,617.52,0.32387614]
[1739239235011,2.53184125,619.11,617.52,0.32387614]
[1739239235204,1.45474547,619.1,617.52,0.32387614]
[1739239235408,1.07709578,619.09,617.52,0.32387614]
[1739239235605,1.45474547,619.08,617.52,0.32387614]
[1739239235809,1.07709578,619.07,617.52,0.32387614]
[1739239236010,1.45474547,619.06,617.52,0.32387614]
[1739239236815,1.07709578,619.05,617.52,0.32387614]
[1739239237107,1.45474547,619.04,617.52,0.32387614]
[1739239238112,1.07709578,619.03,617.52,0.32387614]
[1739239238308,1.45474547,619.02,617.52,0.32387614]
[1739239239015,1.07709578,619.01,617.52,0.32387614]
[1739239239914,1.07709578,619.27,617.52,0.32387614]
[1739239240115,1.75068998,619.26,617.52,0.32387614]
[1739239240415,1.75068998,619.25,617.52,0.32387614]
[1739239240616,1.75072258,619.24,617.52,0.32387614]
[1739239240814,2.07370434,619.23,617.52,0.32387614]
[1739239241016,1.45374259,619.22,617.52,0.32387614]
[1739239241213,2.53083837,619.22,617.52,0.32387614]
[1739239241417,1.45374259,619.21,617.52,0.32387614]
[1739239241717,2.53083837,619.21,617.52,0.32387614]
[1739239241911,1.45374259,619.2,617.52,0.32387614]
[1739239242316,1.07709578,619.19,617.52,0.32387614]
[1739239242518,1.45374259,619.18,617.52,0.32387614]
[1739239242719,1.45379212,619.17,617.52,0.32387614]
[1739239243018,1.45379212,619.16,617.52,0.32387614]
[1739239243213,2.53091686,619.15,617.52,0.32387614]
[1739239243414,1.45382108,619.14,617.52,0.32387614]
[1739239243718,1.07709578,619.13,617.52,0.32387614]
[1739239243919,1.45382108,619.12,617.52,0.32387614]
[1739239244316,1.07709578,619.11,617.52,0.32387614]
[1739239244720,1.45394098,619.1,617.52,0.32387614]
[1739239245019,1.07709578,619.22,617.52,0.32387614]
[1739239245419,1.4539045,619.09,617.52,0.32387614]
[1739239245613,1.4539045,619.21,617.52,0.32387614]
[1739239246324,1.45381024,619.2,617.52,0.32387614]
[1739239246620,1.45381024,619.19,617.52,0.32387614]
[1739239246823,1.45381024,619.18,617.52,0.32387614]
[1739239247021,1.7507964,619.17,617.52,0.32387614]
[1739239247321,1.7507964,619.16,617.54,1.19824383]
[1739239247518,2.07385349,619.15,617.56,0.32385517]
[1739239247717,2.07385871,619.14,617.56,0.32385517]
[1739239247915,2.07386393,619.13,617.56,0.32385517]
[1739239248122,2.07386915,619.12,617.56,0.32385517]
[1739239248323,2.07387437,619.11,617.56,0.32385517]
[1739239248620,3.15099979,619.1,617.56,0.32385517]
[1739239248823,2.07390923,619.09,617.56,0.32385517]
[1739239249020,2.07391445,619.08,617.56,0.32385517]
[1739239249217,2.07391967,619.07,617.56,0.32385517]
[1739239249523,2.07392489,619.06,617.56,0.32385517]
[1739239249720,1.7508466,619.05,617.56,0.32385517]
[1739239249925,1.45381024,619.04,617.56,0.32385517]
[1739239250120,1.45381024,619.03,617.56,0.32385517]
[1739239250320,1.75085605,619.02,617.56,0.32385517]
[1739239250519,1.75085605,619.01,617.56,0.32385517]
[1739239250817,0.32307046,619.06,617.56,0.32385517]
[1739239250818,3.1510536,619.0,617.56,0.32385517]
[1739239251018,2.07396304,618.99,617.56,0.32385517]
[1739239251217,1.75085605,618.98,617.56,0.32385517]
[1739239251418,2.07397348,618.97,617.56,0.32385517]
[1739239251618,1.75085605,618.96,617.56,0.32385517]
[1739239251819,1.75085605,618.95,617.56,0.32385517]
[1739239252019,1.75085605,618.94,617.56,0.32385517]
[1739239252217,1.75085605,618.93,617.56,0.32385517]
[1739239252415,0.29704581,618.92,617.56,0.32385517]
[1739239252617,1.45492816,618.91,617.56,0.32385517]
[1739239252820,1.45492816,618.9,617.56,0.32385517]
[1739239253023,1.45492816,618.89,617.56,0.32385517]
[1739239253221,1.45492816,618.88,617.56,0.32385517]
[1739239253620,1.07709578,618.87,617.56,0.32385517]
[1739239254223,1.07709578,618.96,617.56,0.32385517]
[1739239254423,1.45586875,618.95,617.56,0.32385517]
[1739239254623,1.45643866,618.94,617.56,0.32385517]
[1739239254824,1.45643866,618.93,617.56,0.32385517]
[1739239255122,1.45643866,618.92,617.56,0.32385517]
[1739239255317,1.45655056,618.91,617.56,0.32385517]
[1739239255517,1.45655056,618.9,617.56,0.32385517]
[1739239256222,1.07709578,618.89,617.56,0.32385517]
[1739239256422,1.45655056,618.88,617.56,0.32385517]
[1739239257123,1.07709578,618.87,617.56,0.32385517]
[1739239257317,1.45655056,618.86,617.56,0.32385517]
[1739239257916,1.07709578,618.85,617.56,0.32385517]
[1739239258319,1.45886311,618.84,617.56,0.32385517]
[1739239258519,1.07709578,618.96,617.56,0.32385517]
[1739239258723,1.45969206,618.95,617.56,0.32385517]
[1739239258922,1.45963766,618.94,617.56,0.32385517]
[1739239259122,1.45963766,618.93,617.56,0.32385517]
[1739239259824,1.07709578,618.92,617.56,0.32385517]
[1739239260023,1.45963766,618.91,617.56,0.32385517]
[1739239260225,1.07709578,618.9,617.56,0.32385517]
[1739239260525,1.45963766,618.89,617.56,0.32385517]
[1739239260920,1.46059302,618.88,617.56,0.32385517]
[1739239261120,1.46059302,618.87,617.56,0.32385517]
[1739239261323,2.53759013,618.86,617.56,0.32385517]
[1739239261524,1.46049435,618.85,617.56,0.32385517]
[1739239261825,1.07709578,618.84,617.56,0.32385517]
[1739239262221,1.07709578,618.96,617.56,0.32385517]
[1739239262423,1.46194392,618.95,617.56,0.32385517]
[1739239263031,1.07709578,618.94,617.56,0.32385517]
[1739239263226,1.46194392,618.93,617.56,0.32385517]
[1739239263624,1.07709578,618.94,617.56,0.32385517]
[1739239263823,1.07709578,618.96,617.56,0.32385517]
[1739239264023,1.46271561,618.95,617.56,0.32385517]
[1739239264428,1.07709578,618.94,617.56,0.32385517]
[1739239264630,1.46271561,618.93,617.56,0.32385517]
[1739239265031,1.07709578,618.92,617.56,0.32385517]
[1739239265227,1.46271561,618.91,617.56,0.32385517]
[1739239265827,1.07709578,618.9,617.56,0.32385517]
[1739239266226,1.46461061,618.89,617.56,0.32385517]
[1739239266732,1.07709578,618.88,617.56,0.32385517]
[1739239267331,1.07709578,618.96,617.56,0.32385517]
[1739239267532,1.4655405,618.95,617.56,0.32385517]
[1739239267928,1.07709578,618.94,617.56,0.32385517]
[1739239268125,1.4655405,618.93,617.56,0.32385517]
[1739239268731,1.07709578,618.92,617.56,0.32385517]
[1739239268930,1.4655405,618.91,617.56,0.32385517]
[1739239269328,1.07709578,618.9,617.56,0.32385517]
[1739239269532,1.4655405,618.89,617.56,0.32385517]
[1739239269828,1.4655405,618.89,617.67,1.19824383]
[1739239269829,1.07709578,618.88,617.67,1.19824383]
[1739239270031,1.4655405,618.87,617.67,1.19824383]
[1739239270434,1.4655405,618.87,617.69,0.32378701]
[1739239270733,0.32311743,618.97,617.69,0.32378701]
[1739239270933,1.46675294,618.96,617.69,0.32378701]
[1739239271229,1.07914333,618.95,617.69,0.32378701]
[1739239271434,1.46675294,618.94,617.69,0.32378701]
[1739239271729,1.07914333,618.93,617.72,1.19824383]
[1739239271934,1.46675294,618.92,617.74,0.3237608]
[1739239272531,1.07914333,618.91,617.74,0.3237608]
[1739239273437,1.07914333,618.96,617.74,0.3237608]
[1739239273738,1.46714824,618.95,617.74,0.3237608]
[1739239274138,1.07914333,618.94,617.74,0.3237608]
[1739239274338,1.46714824,618.93,617.74,0.3237608]
[1739239274535,1.46714824,618.93,617.84,1.19824383]
[1739239274738,1.46714824,618.93,617.85,0.32370316]
[1739239274940,1.07914333,618.92,617.85,0.32370316]
[1739239275143,1.46714824,618.91,617.85,0.32370316]
[1739239275333,1.07914333,618.9,617.85,0.32370316]
[1739239275535,1.46714824,618.89,617.85,0.32370316]
[1739239275939,1.07914333,618.88,617.85,0.32370316]
[1739239276139,1.46714824,618.87,617.85,0.32370316]
[1739239276844,1.07914333,618.86,617.85,0.32370316]
[1739239277042,1.46714824,618.85,617.85,0.32370316]
[1739239277243,1.46711714,618.84,617.85,0.32370316]
[1739239277444,1.46711714,618.83,617.85,0.32370316]
[1739239277740,1.46712511,618.82,617.85,0.32370316]
[1739239277945,1.46712511,618.81,617.85,0.32370316]
[1739239278141,1.46712511,618.8,617.85,0.32370316]
[1739239278342,2.54626844,618.79,617.85,0.32370316]
[1739239278546,1.46712511,618.78,617.85,0.32370316]
[1739239278747,1.07914333,618.77,617.85,0.32370316]
[1739239278943,1.46712511,618.76,617.85,0.32370316]
[1739239279145,1.07914333,618.75,617.85,0.32370316]
[1739239279339,1.46712511,618.74,617.85,0.32370316]
[1739239279540,1.07914333,618.73,617.85,0.32370316]
[1739239280046,1.07914333,618.96,617.85,0.32370316]
[1739239280248,1.4671275,618.95,617.85,0.32370316]
[1739239280547,0.32311743,618.97,617.85,0.32370316]
[1739239280548,2.54627083,618.94,617.85,0.32370316]
[1739239280746,1.4671275,618.93,617.85,0.32370316]
[1739239280941,1.4671275,618.92,617.85,0.32370316]
[1739239281148,1.4671275,618.91,617.85,0.32370316]
[1739239281348,1.4671275,618.9,617.85,0.32370316]
[1739239281550,1.46721772,618.89,617.85,0.32370316]
[1739239281752,2.54636105,618.88,617.85,0.32370316]
[1739239281949,1.46721772,618.87,617.85,0.32370316]
[1739239282555,1.07914333,618.86,617.85,0.32370316]
[1739239282754,1.46721772,618.85,617.85,0.32370316]
[1739239283353,1.07914333,618.84,617.85,0.32370316]
[1739239283653,1.46721772,618.83,617.85,0.32370316]
[1739239284055,1.07914333,618.82,617.85,0.32370316]
[1739239284250,1.46721772,618.81,617.85,0.32370316]
[1739239284451,2.54636105,618.81,617.85,0.32370316]
[1739239284654,1.46721772,618.8,617.85,0.32370316]
[1739239285055,1.07914333,618.79,617.85,0.32370316]
[1739239285354,1.46721772,618.78,617.85,0.32370316]
[1739239285554,2.54636105,618.78,617.85,0.32370316]
[1739239285755,1.46721772,618.77,617.85,0.32370316]
[1739239285957,1.46846716,618.76,617.85,0.32370316]
[1739239286150,1.46846716,618.75,617.85,0.32370316]
[1739239286353,1.46849129,618.74,617.85,0.32370316]
[1739239286556,1.46849129,618.73,617.85,0.32370316]
[1739239286854,1.46849129,618.72,617.85,0.32370316]
[1739239287051,1.46849129,618.71,617.85,0.32370316]
[1739239287255,1.07914333,618.72,617.85,0.32370316]
[1739239287455,1.46852836,618.71,617.85,0.32370316]
[1739239287653,1.07914333,618.96,617.85,0.32370316]
[1739239287856,1.46865089,618.95,617.85,0.32370316]
[1739239288057,1.46865089,618.94,617.85,0.32370316]
[1739239288255,1.46865089,618.93,617.85,0.32370316]
[1739239288459,1.46865089,618.92,617.85,0.32370316]
[1739239288657,1.46865089,618.91,617.85,0.32370316]
[1739239288861,1.46865089,618.9,617.85,0.32370316]
[1739239289161,1.46865089,618.89,617.85,0.32370316]
[1739239289462,1.07914333,618.88,617.85,0.32370316]
[1739239289661,2.54779422,618.87,617.85,0.32370316]
[1739239289962,1.46865089,618.86,617.85,0.32370316]
[1739239290162,1.46876345,618.85,617.85,0.32370316]
[1739239290357,2.54790678,618.84,617.85,0.32370316]
[1739239290557,1.46876345,618.83,617.85,0.32370316]
[1739239291159,1.07914333,618.82,617.85,0.32370316]
[1739239291360,1.46876345,618.81,617.85,0.32370316]
[1739239292064,1.07914333,618.8,617.85,0.32370316]
[1739239292266,1.46876345,618.79,617.85,0.32370316]
[1739239292666,1.07914333,618.78,617.85,0.32370316]
[1739239292965,1.46876345,618.77,617.85,0.32370316]
[1739239293663,1.07914333,618.76,617.85,0.32370316]
[1739239293967,2.54790678,618.75,617.85,0.32370316]
[1739239294167,1.46876345,618.74,617.85,0.32370316]
[1739239294561,1.07914333,618.73,617.85,0.32370316]
[1739239294763,1.46876345,618.72,617.85,0.32370316]
[1739239294967,1.46926774,618.71,617.85,0.32370316]
[1739239295168,1.07914333,618.73,617.85,0.32370316]
[1739239295169,1.46922747,618.7,617.85,0.32370316]
[1739239295364,2.54839108,618.69,617.85,0.32370316]
[1739239295568,1.07914333,618.69,617.85,0.32370316]
[1739239295869,1.07914333,618.96,617.85,0.32370316]